Cogmind - Beta 16 @@@ ROGUE MODE // 2025.12.20 @ 23:44:19 Player: PE-P51 Result: Destroyed by H5-0PU(R) with Subdweller Beam Cannon Performance ------------- Evolutions (0) 0 Regions Visited (2) 400 Robots Destroyed (29) 145 Value Destroyed (762) 762 Prototype IDs (2) 40 Alien Tech Used (0) 0 Bonus (0) 0 TOTAL SCORE: 1347 Bonus ------- None Cogmind --------- Core Integrity 0/250 Matter 105/300 Energy 237/250 System Corruption 0% Temperature Cool (9) Movement Treading (240) Ox1 Location -10/Subcaves Parts ------- > --- POWER (1) -------- Ion Engine > --- PROPULSION (2) --- Light Treads Light Treads > --- UTILITY (2) ------ High-capacity Storage Unit Subdweller Optics > --- WEAPON (2) ------- Subdweller Beam Cannon Subdweller Machine Gun > --- INVENTORY (20) --- Light Ion Engine Light Ion Engine Subdweller Power Source Subdweller Power Source Aluminum Leg Aluminum Leg Aluminum Leg Aluminum Leg Aluminum Leg Aluminum Leg Flight Unit Large Storage Unit Subdweller Optics Subdweller Laser Makeshift Laser Subdweller Beam Cannon Subdweller Machine Gun Battle Cannon Grenade Launcher Subdweller Shrapnel Launcher Peak State ------------ > --- POWER ------------ Subdweller Power Source > --- PROPULSION ------- Light Treads Light Treads > --- UTILITY ---------- Improved Heat Sink High-capacity Storage Unit > --- WEAPON ----------- Particle Gun Subdweller Beam Cannon > --- INVENTORY -------- Ion Engine Ion Engine Light Ion Engine Light Ion Engine Light Treads Aluminum Leg Aluminum Leg Aluminum Leg Aluminum Leg Aluminum Leg Aluminum Leg Flight Unit Large Storage Unit Medium Laser Light Assault Rifle Battle Cannon Battle Cannon Grenade Launcher [Rating: 14] Favorites ----------- Power Ion Engine Engine Ion Engine Propulsion Light Treads Treads Light Treads Leg Aluminum Leg Utility High-capacity Storage Unit Device Subdweller Optics Storage High-capacity Storage Unit Weapon Subdweller Beam Cannon Energy Gun Particle Gun Energy Cannon Subdweller Beam Cannon Ballistic Gun Subdweller Machine Gun Ballistic Cannon Battle Cannon Launcher Grenade Launcher Build | -11 -10 -10 ------- Run | Yrd Mat Sub Slots Evolved . | . . . Power . | . . . Propulsion . | . . . Utility . | . . . Weapon . | . . . Parts Attached 28 | . 11 17 Power 4 | . 1 3 Engine 4 | . 1 3 Core . | . . . Reactor . | . . . Propulsion 7 | . 4 3 Treads 3 | . . 3 Leg 4 | . 4 . Wheel . | . . . Hover . | . . . Flight . | . . . Utility 6 | . 3 3 Device 4 | . 1 3 Storage 2 | . 2 . Processor . | . . . Hackware . | . . . Protection . | . . . Artifact . | . . . Weapon 11 | . 3 8 Energy Gun 1 | . 1 . Energy Cannon 3 | . . 3 Ballistic Gun 3 | . 1 2 Ballistic Cannon 3 | . . 3 Launcher 1 | . 1 . Special Weapon . | . . . Impact Weapon . | . . . Slashing Weapon . | . . . Piercing Weapon . | . . . Special Melee Weapon . | . . . Unidentified Prototypes . | . . . Parts Lost 1 | . . 1 Power . | . . . Propulsion 1 | . . 1 Utility . | . . . Weapon . | . . . Highest Loss Streak 1 | . . 1 To Critical Strikes . | . . . Average Backups 17 | 6 10 19 Power 3 | 1 2 3 Propulsion 7 | 4 4 7 Utility 1 | . . 1 Weapon 5 | 1 2 5 Tool/Special . | . . . Unused Backups 12 | . 2 10 Power 2 | . . 2 Propulsion 3 | . . 3 Utility 2 | . 2 . Weapon 5 | . . 5 Tool/Special . | . . . Average Slot Usage (%) 99 | . 97 99 Engine 14 | . 14 14 Treads 22 | . . 27 Leg 5 | . 28 . Device 13 | . 11 13 Storage 14 | . 14 14 Energy Gun 3 | . 14 1 Energy Cannon 10 | . . 12 Ballistic Gun 9 | . 13 8 Ballistic Cannon 4 | . . 5 Peak Build Rating 14 | 6 11 14 Average Rating 11 | 6 9 12 On Entrance 7 | 6 6 11 Avg Prop Armor Cover (%) . | . . . Naked Turns . | . . . Heaviest Build 63 | 11 50 63 Greatest Support 40 | 20 20 40 Greatest Overweight (x) 2 | . 2 2 Average Overweight (x) 1 | . 1 1 Largest Inventory Capacity 20 | 8 20 20 Average Capacity 19 | 8 15 20 Most Carried 20 | 6 15 20 Average Carried 17 | 6 10 19 Final Capacity 20 | 8 20 20 Final Carried 20 | 6 15 20 Class Distribution -------------------- 81% | Mutant 18% | Scavenger-Mutant Dominant Class ---------------- Mutant | -10/Materials Mutant | -10/Subcaves Resources | -11 -10 -10 ----------- Run | Yrd Mat Sub Matter Collected 834 | 200 200 434 Remotely . | . . . Salvage Created 854 | . 452 402 Parts 59 | . 31 28 Haulers Intercepted 1 | . 1 . Recyclers Shooed 1 | . 1 . Parts Field Recycled . | . . . Retrieved Matter . | . . . Parts Self-Destructed 8 | . . 8 Prevented . | . . . Parts Restored . | . . . Kills | -11 -10 -10 ------- Run | Yrd Mat Sub Combat Hostiles Destroyed 26 | . 13 13 Guns 10 | . 7 3 Cannons 6 | . . 6 AOE 10 | . 6 4 Classes Destroyed 6 | . 4 2 Hauler 1 | . 1 . Recycler 1 | . 1 . Turret 1 | . . 1 Swarmer 10 | . 6 4 Grunt 7 | . 7 . Subdweller 9 | . . 9 Best Kill Streak 4 | . 4 4 Combat Bots Only 4 | . 3 4 Max Kills in Single Turn 2 | . 2 2 Gunslinging 1 | . . 1 Exploded 2 | . 2 2 Melee . | . . . Uniques/NPCs Destroyed . | . . . Combat | -11 -10 -10 -------- Run | Yrd Mat Sub Hostile Shots Fired 163 | . 39 124 Missed 83 | . 18 65 Hits 80 | . 21 59 Projectile 80 | . 21 59 Critical Strikes 1 | . . 1 Damage Taken 1117 | . 303 814 Core 264 | . 57 207 Absorbed by Shields . | . . . Core Remaining (%) 100 | 100 . . Volleys Fired 121 | . 38 83 Largest 2 | . 2 2 Hottest 160 | . 85 160 Shots Fired 191 | . 69 122 Gun 104 | . 64 40 Cannon 79 | . . 79 Launcher 8 | . 5 3 Special . | . . . Kinetic 110 | . 33 77 Thermal 73 | . 31 42 Explosive 8 | . 5 3 Electromagnetic . | . . . Robot Hit Streak 13 | . 13 11 Robot Miss Streak 2 | . 2 2 Penetration Max . | . . . Secondary Targets 1 | . . 1 Max Gunslinging Chain 1 | . . 1 Shots Hit Robots 91 | . 45 46 Core Hits 42 | . 25 17 Critical Kills . | . . . Critical Parts Destroyed 1 | . 1 . Critical Strikes 4 | . 3 1 Burn 3 | . 2 1 Destroy 1 | . 1 . Melee Attacks . | . . . Impact . | . . . Slashing . | . . . Piercing . | . . . Sneak Attacks . | . . . Combat Hostiles . | . . . Follow-up Attacks . | . . . Damage Inflicted 1934 | . 871 1063 Guns 885 | . 520 365 Cannons 559 | . . 559 Explosions 480 | . 341 139 Melee . | . . . Ramming 10 | . 10 . Kinetic 568 | . 159 409 Thermal 876 | . 361 515 Explosive 480 | . 341 139 Electromagnetic . | . . . Impact . | . . . Slashing . | . . . Piercing . | . . . Highest Corruption . | . . . Average Corruption . | . . . Corruption Purged . | . . . Corruption Blocked . | . . . Overload Shots . | . . . Overflow Damage 30 | . 6 24 Projectiles 24 | . . 24 Explosions 6 | . 6 . Melee . | . . . Knockbacks . | . . . Impact . | . . . Kinetic . | . . . Secondary . | . . . Self-Inflicted Damage 53 | . 53 . Shots 2 | . 2 . Rammed . | . . . Targets Rammed 3 | . 3 . Kicked 3 | . 3 . Crushed . | . . . Highest Temperature 230 | . 230 45 Average Temperature 49 | . 67 16 Received Heat Transfer 372 | . 111 261 Effects 1 | . 1 . Interference 1 | . 1 . Siege Activations . | . . . Martial Activations . | . . . Shielding Activations . | . . . Robots Disrupted . | . . . Combat Hostiles . | . . . Robots Corrupted . | . . . Combat Hostiles . | . . . Parts Fried . | . . . Impact Corruptions . | . . . Robots Melted . | . . . Combat Hostiles . | . . . Parts Melted 4 | . 3 1 Heat Transferred 1887 | . 1036 851 Parts Sabotaged . | . . . Parts Stolen . | . . . Parts Stripped . | . . . Power Chain Reactions . | . . . Alert | -11 -10 -10 ------- Run | Yrd Mat Sub Maximum Alert Level . | . . . Low Security (%) 100 | 100 100 . Level 1 . | . . . Level 2 . | . . . Level 3 . | . . . Level 4 . | . . . Level 5 . | . . . High Security . | . . . Max Security . | . . . Peak Influence 156 | . 156 . Initial . | . . . Average 70 | . 70 . Influence Increases 680 | . 385 295 Destroy 0b10 Robot/C 360 | . 260 100 Destroy 0b10 Robot/NC 10 | . 10 . Destroy Leader 62 | . 62 . Successful Hack 7 | . 7 . Destroy Structure 31 | . 31 . Lose Combat Pursuer 210 | . 15 195 Influence Decreases 680 | . 336 344 Entered New Map 25 | . . 25 Time Decay 655 | . 336 319 Squads Dispatched 2 | . 2 . Investigation 1 | . 1 . Extermination . | . . . Reinforcement 1 | . 1 . Assault . | . . . Garrison . | . . . Intercept . | . . . Searches Triggered . | . . . Construction Impeded . | . . . Haulers Reinforced . | . . . Active Scanning Responses . | . . . Cargo Convoy Interrupts . | . . . Stealth | -11 -10 -10 --------- Run | Yrd Mat Sub Distress Signals 1 | . 1 . Communications Jammed . | . . . Distress Signals . | . . . Times Spotted 40 | . 19 21 Peak Tracking Total 4 | . 4 4 Tactical Retreats 6 | . 1 5 Traps | -11 -10 -10 ------- Run | Yrd Mat Sub Traps Triggered 1 | . . 1 Indirectly . | . . . Trap Hack Attempts . | . . . Triggered . | . . . Disarmed . | . . . Reprogrammed . | . . . Reused . | . . . Traps Extracted . | . . . Installed . | . . . Triggered . | . . . Machines | -11 -10 -10 ---------- Run | Yrd Mat Sub Machines Disabled . | . . . Max in Single Turn . | . . . Machines Repaired . | . . . Machines Dismantled . | . . . Machines Sabotaged . | . . . Overloaded Fab Kills . | . . . Hacking | -11 -10 -10 --------- Run | Yrd Mat Sub Machines Accessed 2 | . 1 1 Terminals 1 | . 1 . Fabricators . | . . . Repair Stations . | . . . Recycling Units . | . . . Scanalyzers . | . . . Garrison Access . | . . . Total Hacks 7 | . 6 1 Successful 3 | . 2 1 Failed 4 | . 4 . Catastrophic . | . . . Database Lockouts . | . . . Manual 4 | . 4 . Terminals 6 | . 6 . Fabricators . | . . . Repair Stations . | . . . Recycling Units . | . . . Scanalyzers . | . . . Garrison Access . | . . . Terminal Hacks 3 | . 2 1 Prototype ID Bank 1 | . 1 . Open Door 1 | . . 1 Registered Components 1 | . 1 . Fabricator Hacks . | . . . Repair Station Hacks . | . . . Recycling Unit Hacks . | . . . Scanalyzer . | . . . Garrison Access Hacks . | . . . Unauthorized Hacks . | . . . Terminals . | . . . Fabricators . | . . . Repair Stations . | . . . Recycling Units . | . . . Scanalyzers . | . . . Garrison Access . | . . . Data Cores Recovered . | . . . Used . | . . . Hacking Detections 1 | . 1 . Full Trace Events 1 | . 1 . Feedback Events . | . . . Feedback Blocked . | . . . Robot Schematics Acquired . | . . . Robots Built . | . . . Authchips . | . . . Time . | . . . Total Robot Build Rating . | . . . Part Schematics Acquired . | . . . Parts Built . | . . . Authchips . | . . . Time . | . . . Total Part Build Rating . | . . . Part Studies Acquired . | . . . Parts Repaired . | . . . Time . | . . . Parts Recycled . | . . . Recycled Matter . | . . . Retrieved Matter . | . . . Retrieved Components . | . . . Parts Scanalyzed . | . . . Part Schematics Acquired . | . . . Parts Damaged . | . . . Bothacking | -11 -10 -10 ------------ Run | Yrd Mat Sub Used RIF Installer . | . . . Robots Hacked . | . . . Non-combat . | . . . Combat . | . . . Robot Hacks Applied . | . . . Relay Couplers Released . | . . . Fabnet Peak Effective % . | . . . Robots Rewired . | . . . Allies Hacked . | . . . Hacks Repelled . | . . . Allies | -11 -10 -10 -------- Run | Yrd Mat Sub Total Allies . | . . . Largest Group . | . . . Highest-Rated Group . | . . . Highest-Rated Ally . | . . . Total Orders . | . . . Ally Attacks . | . . . Total Damage . | . . . Kills . | . . . Allies Corrupted . | . . . Allies Melted . | . . . Intel | -11 -10 -10 ------- Run | Yrd Mat Sub Active Infowar (turns) 3195 | . . 3195 Optics 3195 | . . 3195 Robot Analysis Total . | . . . Derelict Logs Recovered 1 | . . 1 Drone Launches . | . . . Drone Recoveries . | . . . Exploration | -11 -10 -10 ------------- Run | Yrd Mat Sub Turns Passed 5163 | 6 912 4245 Spaces Moved 2046 | 6 391 1649 Core . | . . . Treads 1632 | . . 1632 Legs 414 | 6 391 17 Wheels . | . . . Hover . | . . . Flight . | . . . Fastest Speed 120 | 120 120 240 Average Speed 230 | 120 190 240 Slowest Speed 260 | 120 260 260 Overloaded Moves . | . . . Propulsion Burnouts . | . . . Robots Hopped . | . . . Potential Cave-ins . | . . . Cave-ins Triggered . | . . . Exploration Rate (%) 44 | 2 44 88 Regions Visited 2 Branch Regions 1 Pre-discovered Areas . | . . . Known Exits Taken . | . . . Unknown Exits Taken 2 | 1 1 . Scrap Searched 2 | . . 2 Spaces Dug . | . . . Terrain Destroyed 53 | . 32 21 Melee . | . . . Projectile 3 | . . 3 AOE 50 | . 32 18 Terrain Rammed . | . . . Walls Destroyed . | . . . Machines Disabled . | . . . Actions | -11 -10 -10 --------- Run | Yrd Mat Sub Total 2304 | 5 489 1810 Wait 59 | . 38 21 Move 2044 | 5 390 1649 Hop . | . . . Pick Up 18 | . 4 14 Fast Attach 2 | . 1 1 Attach 2 | . . 2 Detach . | . . . Swap 41 | . 12 29 Drop 14 | . 3 11 Fire 121 | . 38 83 Melee . | . . . Ram . | . . . Kick 3 | . 3 . Crush . | . . . Escape Stasis . | . . . Rewire . | . . . Trap . | . . . Miscellaneous . | . . . Route ------- -11/Scrapyard -10/Materials (discovered 3 exits: [*Mat] / [*Min] / *Sub) -10/Subcaves (discovered 3 exits: [*Mat x2] / [*Rec]) History --------- Turn | Location | Event 1 | -11/Scrapyard | Discovered new exit (range 3) 7 | -11/Scrapyard | Entered Materials 246 | -10/Materials | Discovered new exit (range 15) 310 | -10/Materials | Build established: Mutant 602 | -10/Materials | Discovered new exit (range 16) 859 | -10/Materials | Build established: Scavenger-Mutant 900 | -10/Materials | Discovered new exit (range 5) 919 | -10/Materials | Entered Subcaves 1191 | -10/Subcaves | Shifting Twisted Machinery released Sub. Beam Cannon 1213 | -10/Subcaves | Shifting Twisted Machinery released Piercing Trap 1277 | -10/Subcaves | Build established: Mutant 2189 | -10/Subcaves | Discovered new exit (range 18) 2199 | -10/Subcaves | Core integrity fell below 50% 2539 | -10/Subcaves | A swath of the cavern ceiling suddenly collapsed 2645 | -10/Subcaves | Shifting Twisted Machinery released Flamer 2732 | -10/Subcaves | Shifting Twisted Machinery released Sub. Power Source 2919 | -10/Subcaves | Discovered new exit (range 19) 3001 | -10/Subcaves | Discovered new exit (range 20) 3280 | -10/Subcaves | Shifting Twisted Machinery released Sub. Laser 3285 | -10/Subcaves | Shifting Twisted Machinery released Shrapnel Trap 4406 | -10/Subcaves | Core integrity fell below 20% 4888 | -10/Subcaves | A swath of the cavern ceiling suddenly collapsed 5155 | -10/Subcaves | A Subdweller sparked back to life 5164 | -10/Subcaves | Destroyed by H5-0PU(R) with Subdweller Beam Cannon Last Messages --------------- 04441_ Acquired Sub. Shrapnel Launcher. 04467_ Subatomizers dissect the Sub. Monowheel. 04468_ 5T-AQ6(O) puts together Battle Cannon. 04516_ Subatomizers dissect the Sub. Monowheel. 04518_ Dropped Battle Cannon. 04572_ Sub. Optics shoots sparks and powers down. 04572_ Dropped Broken Sub. Optics. 04618_ Subatomizers dissect the Battle Cannon. 04631_ 5T-AQ6(O) collects matter. 04643_ Subatomizers dissect the Battle Cannon, destroying it. 04658_ Subatomizers dissect the Sub. Monowheel. 04676_ Acquired Sub. Optics. 04685_ Subatomizers dissect the Sub. Monowheel. 04685_ Dropped Particle Gun. 04685_ Acquired Mak. Laser. 04696_ Subatomizers dissect the Sub. Monowheel. 04724_ Subatomizers dissect the Sub. Monowheel, destroying it. 04739_ Subatomizers dissect the Broken Sub. Optics. A swath of the cavern ceiling suddenly collapses. 05155_ WT-QWW(R) creaks and sparks as it begins to move. Map ----- +----------------------------------------------------+ | ?????????????????????????????????????????????????? | | ?????????????????????????????????????????????????? | | ?????????????????????????????????????????????????? | | ?????????????????????????????????????????????????? | | ?????????????????????????????????????????????????? | | ?????????????????????????????????????????????????? | | ?????????????????????????????????????????????????? | | ?????????????????????????????????????????????????? | | ?????????????????????????????????????????????????? | | ?????????????????????????????????????????????????? | | ?????????????????????????????????????????????????? | | ???????????????????????##????????????????????????? | | ??????????????????????? ????????????????????????? | | ??????????????????????? ????????????????????????? | | ??????????????????????? ????????????????????????? | | ??????????????????????? ##??????????????????????? | | ???????????????????????? ##?????????????????????? | | "#??????#??????????????? ###???????????????????? | | ?" ##?## ??????????????? #???????????????????? | | ??? ## ???????????????<& #???????????????????? | | ????# #????????######?< ##??????????????????? | | ????# ########## ## ## < " ##?????????????????? | | ??## ## # & #?????????????????? | | ### R #?????????????????? | | ###RR;# ##?????????????????? | | ##?# @#??????????????????????? | | ##??# #??????????????????????? | | ## ##???## #??????????????????????? | | #### ##?????####??????????????????????? | | ##### #??# ##????????????????????????????????? | | ???## ###### ##?????????????????????????????????? | | #### #####??????????????????????????????????? | | # ##????????????????????????????????????? | | #######??????????????????????????????? | | # # ##?????????????????????????????? | | #?????????????????????????????? | | #?????????????????????????????? | | # # # #?????????????????????????????? | | ########?????????????????????????????? | | #???????????????????????????????????? | | ## #???????????????????????????????????? | | ##### #???????????????????????????????????? | | ##???## #???????????????????????????????????? | | ###?????####???????????????????????????????????? | | ###??????????????????????????????????????????????? | | ?????????????????????????????????????????????????? | | ?????????????????????????????????????????????????? | | ?????????????????????????????????????????????????? | | ?????????????????????????????????????????????????? | | ?????????????????????????????????????????????????? | +----------------------------------------------------+ Best States ------------- Heat Dissipation 39 Energy Generation 15 Energy Capacity 250 Matter Stores 300 Matter Capacity 300 Sight Range 21 Terrain Scan Density 10 Evasion (%) 55 Recoil Reduction 2 Item Schematics ----------------- None Robot Schematics ------------------ None Fabricated ------------ Nothing Repaired ---------- Nothing Studied --------- None Alien Tech Used ----------------- None Achievements -------------- None Challenges ------------ None Game ------ Seed SmartGammaPerforator Manual? 0 Play Time 00:17:16 Cumulative 213.3 hours Start 2025.12.20 @ 23:27:40 End 2025.12.20 @ 23:44:19 Sessions 1 Manual Loads 0 Difficulty Rogue Special Mode None Game No. 292 Rogue 291 Adventurer 1 Explorer 0 Win Type - Total 2 Types 1/0/0/1/0/0/0/0/0/0 Lore% 66 Gallery% 62 Achievement% 55 Wizard Run 0 Options --------- Layout 0 ASCII 0 Keyboard 0 Movement Numpad Keybinds 0 Fullscreen 1 Font 24/Smallcaps Map View 76x50 Zoom Use 0% Tactical HUD 1 Map Filters NONE Filters NONE Steam 1 RUN: 1ca69fb3-5d1b-493a-8786-5a3c504bf9da